bitfinex/quotes_BTCUSD_20250206
["timestamp","ask_amount","ask_price","bid_price","bid_amount"]
[1738864078048,0.5178745,96877.0,96876.0,0.4171946]
[1738864078247,0.5178745,96877.0,96876.0,0.4161946]
[1738864078481,0.5178745,96877.0,96876.0,0.4492576]
[1738864078689,0.6707095,96877.0,96876.0,0.2393576]
[1738864078868,0.6707095,96877.0,96876.0,0.05545395]
[1738864078869,0.72249695,96877.0,96876.0,0.05545395]
[1738864079246,0.72249695,96877.0,96876.0,0.05074589]
[1738864079247,0.72349695,96877.0,96876.0,0.05074589]
[1738864079630,0.72249695,96877.0,96876.0,0.05074589]
[1738864079989,0.72349695,96877.0,96876.0,0.05174589]
[1738864080180,0.72249695,96877.0,96876.0,0.00224589]
[1738864080380,0.72249695,96877.0,96876.0,0.00024589]
[1738864080663,0.72349695,96877.0,96876.0,0.00024589]
[1738864080829,0.72349695,96877.0,96876.0,0.00124589]
[1738864081549,0.5168745,96877.0,96876.0,0.25858654]
[1738864081688,0.5168745,96877.0,96876.0,0.23264954]
[1738864081887,0.5168745,96877.0,96876.0,0.39419143]
[1738864083403,0.5168745,96877.0,96876.0,0.41719143]
[1738864085745,0.5158745,96877.0,96876.0,0.41719143]
[1738864086106,0.5168745,96877.0,96876.0,0.41819143]
[1738864086485,0.12807003,96930.0,96876.0,0.41819143]
[1738864086486,0.154751,96930.0,96920.0,0.154766]
[1738864086684,0.08279474,96934.0,96920.0,0.25726965]
[1738864086862,0.08279474,96934.0,96920.0,0.26382346]
[1738864086863,0.154746,96933.0,96920.0,0.26382346]
[1738864087065,0.08279474,96934.0,96920.0,0.26382346]
[1738864087271,0.1549895,96921.0,96920.0,0.10905746]
[1738864087472,0.1549895,96921.0,96920.0,0.00655381]
[1738864087706,0.1569895,96921.0,96920.0,0.00655381]
[1738864087898,0.0022245,96921.0,96895.0,0.0692]
[1738864088105,0.154793,96903.0,96902.0,0.00013899]
[1738864088568,0.206373,96912.0,96902.0,0.26404805]
[1738864088724,0.20637,96913.0,96903.0,0.10250365]
[1738864088924,0.154792,96904.0,96903.0,0.10250365]
[1738864089516,0.154793,96903.0,96902.0,0.00013899]
[1738864089745,0.154793,96903.0,96902.0,0.10264264]
[1738864090659,0.154793,96903.0,96902.0,0.10173564]
[1738864090816,0.154793,96903.0,96902.0,0.10373564]
[1738864091018,0.154793,96903.0,96902.0,0.10573564]
[1738864092855,0.1,96914.0,96902.0,0.10573564]
[1738864092856,0.567477,96920.0,96907.0,0.154787]
[1738864093070,0.567477,96920.0,96902.0,0.10573564]
[1738864093071,0.154769,96919.0,96912.0,0.154779]
[1738864093272,0.154776,96914.0,96913.0,0.10250365]
[1738864093468,0.28914574,96923.0,96902.0,0.158795]
[1738864093469,0.154793,96903.0,96902.0,0.004]
[1738864093683,0.154793,96903.0,96902.0,0.10450365]
[1738864093883,0.154789,96906.0,96902.0,0.10250365]
[1738864094103,0.154792,96904.0,96903.0,0.10250365]
[1738864094842,0.00013855,96906.0,96903.0,0.10250365]
[1738864095157,0.00013855,96906.0,96903.0,0.10911051]
[1738864095290,0.154791,96905.0,96903.0,0.10911051]
[1738864095517,0.154792,96904.0,96903.0,0.10911051]
[1738864095923,0.00013855,96906.0,96903.0,0.26390351]
[1738864096142,0.00013855,96906.0,96903.0,0.10911051]
[1738864096348,0.00013855,96906.0,96903.0,0.11111051]
[1738864096547,0.00013855,96906.0,96903.0,0.11311051]
[1738864096751,0.00013855,96906.0,96903.0,0.11111051]
[1738864096925,0.00013855,96906.0,96905.0,0.15479]
[1738864097129,0.00013855,96906.0,96905.0,0.26389377]
[1738864097579,0.00013855,96906.0,96905.0,0.10910377]
[1738864097957,0.00013855,96906.0,96905.0,0.26389377]
[1738864098160,0.00013855,96906.0,96905.0,0.26589377]
[1738864099245,0.00013855,96906.0,96905.0,0.26789377]
[1738864101314,0.00013855,96906.0,96905.0,0.11310377]
[1738864101516,0.15492755,96906.0,96905.0,0.11310377]
[1738864101718,0.00013855,96906.0,96905.0,0.11310377]
[1738864101920,0.00013855,96906.0,96905.0,0.26129365]
[1738864102295,0.00013855,96906.0,96905.0,0.26789377]
[1738864102473,0.00013855,96906.0,96905.0,0.11310377]
[1738864102702,0.00013855,96906.0,96905.0,0.26789377]
[1738864102879,0.00013855,96906.0,96905.0,0.29089377]
[1738864103285,0.15492755,96906.0,96905.0,0.11310377]
[1738864103650,0.15492755,96906.0,96905.0,0.10650365]
[1738864104564,0.00013855,96906.0,96905.0,0.10650365]
[1738864104788,0.00013855,96906.0,96905.0,0.11207001]
[1738864107342,0.15492755,96906.0,96905.0,0.11207001]
[1738864108521,0.00013855,96906.0,96905.0,0.11207001]
[1738864108796,0.00013855,96906.0,96905.0,0.26686001]
[1738864110132,0.00013855,96906.0,96905.0,0.11207001]
[1738864110346,0.15492755,96906.0,96905.0,0.11207001]
[1738864110822,0.15492755,96906.0,96905.0,0.10650365]
[1738864111002,0.37952755,96906.0,96905.0,0.004]
[1738864111220,0.37975205,96906.0,96905.0,0.004]
[1738864111784,0.37975205,96906.0,96905.0,0.002]
[1738864112209,0.37975205,96906.0,96902.0,0.0001069]
[1738864112416,0.154793,96903.0,96902.0,0.0001069]
[1738864113665,0.156793,96903.0,96902.0,0.0001069]
[1738864120935,0.002,96903.0,96902.0,0.0001069]
[1738864121158,0.002,96903.0,96902.0,0.25740555]
[1738864121490,0.002,96903.0,96902.0,0.26298885]
[1738864121893,0.00036305,96906.0,96905.0,0.15479]
[1738864122067,0.00036305,96906.0,96905.0,0.25832547]
[1738864122267,0.00036305,96906.0,96905.0,0.26286399]
[1738864122794,0.00036305,96906.0,96905.0,0.28586399]
[1738864123402,0.00036305,96906.0,96905.0,0.35506399]
[1738864123606,0.00036305,96906.0,96905.0,0.28586399]
[1738864124352,0.00036305,96906.0,96905.0,0.29592467]
[1738864124496,0.00036305,96906.0,96905.0,0.29692467]
[1738864125296,0.00036305,96906.0,96905.0,0.29892467]
[1738864128756,0.00036305,96906.0,96905.0,0.49103209]
[1738864129335,0.00036305,96906.0,96905.0,0.56023209]
[1738864129717,0.00036305,96906.0,96905.0,0.55923209]
[1738864130124,0.00036305,96906.0,96905.0,0.55723209]
[1738864130571,0.00036305,96906.0,96905.0,0.55923209]
[1738864130781,0.08301924,96921.0,96920.0,0.154766]
[1738864130980,0.08301924,96921.0,96920.0,0.28026965]
[1738864131414,0.0002245,96921.0,96920.0,0.28577792]
[1738864132437,0.0012245,96921.0,96920.0,0.36497792]
[1738864132643,0.0012245,96921.0,96920.0,0.38637792]
[1738864132845,0.0012245,96921.0,96920.0,0.37637792]
[1738864133255,0.0002245,96921.0,96920.0,0.10801192]
[1738864133655,0.0002245,96921.0,96920.0,0.26277792]
[1738864133938,0.0002245,96921.0,96920.0,0.29579807]
[1738864134498,0.0012245,96921.0,96920.0,0.29679807]
[1738864134717,0.0012245,96921.0,96920.0,0.29629807]
[1738864134923,0.0002245,96921.0,96920.0,0.29529807]
[1738864135081,0.0002245,96921.0,96920.0,0.29929807]
[1738864135310,0.0002245,96921.0,96920.0,0.30129807]
[1738864141728,0.0002245,96921.0,96920.0,0.78539807]
[1738864143314,0.0002245,96921.0,96920.0,0.77539807]
[1738864143881,0.0002245,96921.0,96920.0,0.7957665]
[1738864144706,0.0002245,96921.0,96920.0,0.8057665]
[1738864145487,0.0002245,96921.0,96920.0,0.8058733]
[1738864146147,0.08301902,96964.0,96963.0,0.154698]
[1738864146358,0.08301902,96964.0,96963.0,0.25720165]
[1738864146582,0.00068759,96964.0,96963.0,0.28555585]
[1738864147003,0.00068759,96964.0,96963.0,0.29555585]
[1738864147202,0.20218359,96964.0,96963.0,0.12706493]
[1738864147613,0.04748759,96964.0,96963.0,0.12706493]
[1738864148315,0.21118359,96964.0,96963.0,0.09741453]
[1738864148521,0.20218359,96964.0,96963.0,0.09641453]
[1738864148674,0.20218359,96964.0,96963.0,0.07720745]
[1738864148880,0.20518359,96964.0,96963.0,0.07185325]
[1738864149094,0.20218359,96964.0,96963.0,0.07485325]
[1738864149511,0.20218359,96964.0,96963.0,0.07185325]
[1738864151267,0.04948759,96964.0,96963.0,0.07185325]
[1738864151469,0.04948759,96964.0,96963.0,0.07720441]
[1738864151626,0.00268759,96964.0,96963.0,0.10020441]
[1738864151829,0.00068759,96964.0,96963.0,0.10123556]
[1738864152237,0.00268759,96964.0,96963.0,0.10123556]
[1738864152662,0.15738359,96964.0,96963.0,0.07720441]
[1738864153192,0.15738359,96964.0,96963.0,0.07185325]
[1738864153607,0.15738359,96964.0,96955.0,0.01008687]
[1738864153608,0.18399968,96964.0,96932.0,0.3241]
[1738864153815,0.0781,96941.0,96935.0,0.10250365]
[1738864153962,0.199735,96940.0,96935.0,0.10250365]
[1738864154164,0.199735,96940.0,96936.0,0.00544226]
[1738864154165,0.154738,96938.0,96936.0,0.00544226]
[1738864154365,0.154738,96938.0,96935.0,0.10250365]
[1738864154366,0.045,96940.0,96937.0,0.10250365]
[1738864154564,0.045,96940.0,96937.0,0.10794254]
[1738864155619,0.154738,96938.0,96937.0,0.10894254]
[1738864156053,0.154738,96938.0,96937.0,0.10350365]
[1738864157436,0.154738,96938.0,96937.0,0.10994254]
[1738864157791,0.154738,96938.0,96937.0,0.10894254]
[1738864158012,0.04522428,96940.0,96937.0,0.26468054]
[1738864158212,0.04522428,96940.0,96937.0,0.10994254]
[1738864158814,0.04522428,96940.0,96937.0,0.10894254]
[1738864159695,0.04522428,96940.0,96937.0,0.10794254]
[1738864160157,0.04522428,96940.0,96937.0,0.11901635]
[1738864160363,0.04522428,96940.0,96937.0,0.27375535]
[1738864160564,0.04522428,96940.0,96937.0,0.10794254]
[1738864160766,0.154738,96938.0,96937.0,0.10794254]
[1738864161757,0.154738,96938.0,96937.0,0.10250365]
[1738864161930,0.155738,96938.0,96937.0,0.10250365]
[1738864162544,0.156738,96938.0,96937.0,0.10250365]
[1738864163796,0.567377,96937.0,96920.0,0.0001068]
[1738864164041,0.206348,96924.0,96921.0,0.10250365]
[1738864164249,0.0829,96936.0,96921.0,0.10250365]
[1738864164586,0.154754,96928.0,96922.0,0.00549451]
[1738864164789,0.154756,96927.0,96923.0,0.10250365]
[1738864165000,0.0829,96936.0,96923.0,0.10250365]
[1738864165001,0.15476,96924.0,96923.0,0.10250365]
[1738864166277,0.28486,96924.0,96923.0,0.10250365]
[1738864166886,0.28486,96924.0,96923.0,0.10450365]
[1738864167288,0.28486,96924.0,96923.0,0.10650365]
[1738864167686,0.28486,96924.0,96923.0,0.10350365]
[1738864167914,0.28486,96924.0,96923.0,0.10450365]
[1738864168111,0.33223248,96924.0,96923.0,0.10450365]
[1738864168269,0.28486,96924.0,96923.0,0.10450365]
[1738864169393,0.0831,96934.0,96927.0,0.154754]
[1738864169595,0.0831,96934.0,96928.0,0.10250365]
[1738864169726,0.154752,96929.0,96928.0,0.10250365]
[1738864171319,0.23786,96924.0,96923.0,0.0001068]
[1738864171534,0.5785792,96924.0,96923.0,0.0001068]
[1738864173169,0.15,96923.0,96920.0,0.0001068]
[1738864173380,0.433865,96921.0,96920.0,0.0001068]
[1738864174612,0.441865,96921.0,96920.0,0.0011068]
[1738864176566,0.443865,96921.0,96920.0,0.0011068]
[1738864178092,0.54636865,96921.0,96920.0,0.0011068]
[1738864179342,0.443865,96921.0,96920.0,0.0011068]
[1738864180708,0.1391,96921.0,96920.0,0.0011068]
[1738864180918,0.0574,96921.0,96920.0,0.10361045]
[1738864181119,0.01,96921.0,96920.0,0.10912676]
[1738864182314,0.164765,96921.0,96920.0,0.10912676]
[1738864182523,0.164765,96921.0,96920.0,0.10361045]
[1738864183374,0.01,96921.0,96920.0,0.10361045]
[1738864183790,0.01,96921.0,96920.0,0.10912432]
[1738864184496,0.164765,96921.0,96920.0,0.10912432]
[1738864184824,0.01,96921.0,96920.0,0.10361045]
[1738864185200,0.01,96921.0,96920.0,0.10912432]
[1738864191472,0.01,96921.0,96920.0,0.26389032]
[1738864193295,0.01,96921.0,96920.0,0.10912432]
[1738864193606,0.01,96921.0,96920.0,0.26389032]
[1738864194092,0.01,96921.0,96920.0,0.28689032]
[1738864194896,0.00022428,96923.0,96922.0,0.154763]
[1738864195097,0.00022428,96923.0,96922.0,0.28129815]
[1738864195395,0.00022428,96923.0,96922.0,0.28576839]
[1738864196905,0.00022428,96923.0,96922.0,0.29876839]
[1738864197092,0.00022428,96923.0,96922.0,0.38946839]
[1738864197294,0.00022428,96923.0,96922.0,0.71356839]
[1738864197815,0.00022428,96923.0,96922.0,0.74560362]
[1738864198016,0.00122428,96923.0,96922.0,0.75160362]
[1738864198378,0.00122428,96923.0,96922.0,0.70956839]
[1738864198580,0.00122428,96923.0,96922.0,0.61886839]
[1738864200420,0.00122428,96923.0,96922.0,0.77886839]
[1738864200629,1e-08,96923.0,96922.0,0.84806839]
[1738864200828,1e-08,96923.0,96922.0,0.88006464]
[1738864201228,1e-08,96923.0,96922.0,0.83806839]
[1738864201585,1e-08,96923.0,96922.0,0.76886839]
[1738864202315,0.00013891,96936.0,96935.0,0.154742]
[1738864202590,0.00013891,96936.0,96935.0,0.26269648]
[1738864202740,0.00013891,96936.0,96935.0,0.28569648]
[1738864204343,0.00013891,96936.0,96935.0,0.29069648]
[1738864204547,0.00013891,96936.0,96935.0,0.28569648]
[1738864204914,0.00113891,96936.0,96935.0,0.29769648]
[1738864205041,0.00013891,96936.0,96935.0,0.28869648]
[1738864205241,0.00013891,96936.0,96935.0,0.28569648]
[1738864205441,0.00113891,96936.0,96935.0,0.29469648]
[1738864205642,0.00113891,96936.0,96935.0,0.29769648]
[1738864206274,0.00113891,96936.0,96935.0,0.29469648]
[1738864206796,0.00013891,96936.0,96935.0,0.28769648]
[1738864206950,0.00013891,96936.0,96935.0,0.29169648]
[1738864207404,0.00013891,96936.0,96935.0,0.28769648]
[1738864207557,0.00013891,96936.0,96935.0,0.29569648]
[1738864208136,0.00036319,96936.0,96935.0,0.28569648]
[1738864208415,0.00036319,96936.0,96935.0,0.29569648]
[1738864208828,0.00036319,96936.0,96935.0,0.29169648]
[1738864209051,0.00036319,96936.0,96935.0,0.29469648]
[1738864209478,0.00036319,96936.0,96935.0,0.62903564]
[1738864209657,0.00036319,96936.0,96935.0,0.69823564]
[1738864209858,0.00036319,96936.0,96935.0,0.62303564]
[1738864210168,0.00136319,96936.0,96935.0,0.63103564]
[1738864211549,0.00136319,96936.0,96935.0,0.78103564]
[1738864214009,0.00136319,96936.0,96935.0,0.47629364]
[1738864214296,0.00136319,96936.0,96935.0,0.45329364]
[1738864214532,0.00136319,96936.0,96935.0,0.60803564]
[1738864215269,0.00136319,96936.0,96935.0,0.63103564]
[1738864215531,0.00136319,96936.0,96935.0,0.78103564]
[1738864223475,0.00136319,96936.0,96935.0,0.63103564]
[1738864225611,0.00136319,96936.0,96935.0,0.66304894]
[1738864226536,0.00136319,96936.0,96935.0,0.66306075]
[1738864228350,0.00136319,96936.0,96935.0,0.50831875]
[1738864228647,0.08106319,96936.0,96935.0,0.45329364]
[1738864228965,0.08106319,96936.0,96935.0,0.28393564]
[1738864229198,0.00136319,96936.0,96935.0,0.28393564]
[1738864229352,0.00136319,96936.0,96935.0,0.30693564]
[1738864230737,0.00136319,96936.0,96935.0,0.33900889]
[1738864231141,0.00022428,96940.0,96939.0,0.314736]
[1738864231446,0.00022428,96940.0,96939.0,1.36134464]
[1738864231648,0.00022428,96940.0,96939.0,1.37134464]
[1738864232268,2.8e-07,96940.0,96939.0,1.39189166]
[1738864233230,2.8e-07,96940.0,96939.0,1.41367572]
[1738864233393,0.0002245,96974.0,96961.0,0.304701]
[1738864233561,0.0002245,96974.0,96961.0,0.80173167]
[1738864233763,0.0002245,96974.0,96962.0,0.337699]
[1738864233960,0.0002245,96974.0,96962.0,0.47762211]
[1738864236402,0.0002245,96974.0,96962.0,0.48062211]
[1738864236602,0.0002245,96974.0,96962.0,0.48262211]
[1738864237001,0.0002245,96974.0,96962.0,0.81672211]
[1738864237443,0.0002245,96974.0,96962.0,0.83721354]
[1738864240112,0.0002245,96974.0,96962.0,1.37521354]
[1738864240520,0.0002245,96974.0,96962.0,1.37221354]
[1738864240740,0.0002245,96974.0,96962.0,1.37021354]
[1738864240959,0.0002245,96974.0,96962.0,1.37821354]
[1738864243540,5.6e-07,96964.0,96963.0,0.347698]
[1738864243739,5.6e-07,96964.0,96963.0,1.34971315]
[1738864244814,8.4e-07,96966.0,96965.0,0.324694]
[1738864245020,0.49995995,96980.0,96971.0,0.01]
[1738864245229,0.50001877,96980.0,96979.0,0.45017565]
[1738864245431,0.46402562,96980.0,96979.0,0.45017565]
[1738864245634,0.45962563,96980.0,96979.0,0.45545238]
[1738864245839,0.42969677,96980.0,96979.0,0.45545238]
[1738864246042,0.42969677,96980.0,96979.0,0.43545238]
[1738864246398,0.42969677,96980.0,96979.0,0.44545238]
[1738864246616,0.40599677,96980.0,96979.0,1.01462242]
[1738864246830,0.40599677,96980.0,96979.0,1.02362242]
[1738864247266,0.40599677,96980.0,96979.0,1.01462242]
[1738864247557,0.40599677,96980.0,96979.0,1.01862242]
[1738864248285,0.40599677,96980.0,96979.0,1.01462242]
[1738864248509,0.40599677,96980.0,96979.0,1.01862242]
[1738864248641,0.40599677,96980.0,96979.0,1.02762242]
[1738864248852,0.40599677,96980.0,96979.0,1.01862242]
[1738864249057,0.40599677,96980.0,96979.0,1.02762242]
[1738864249453,0.40599677,96980.0,96979.0,1.01862242]
[1738864249678,0.40599677,96980.0,96979.0,1.02362242]
[1738864250057,0.40599677,96980.0,96979.0,1.01862242]
[1738864250259,0.15471775,96980.0,96979.0,1.02762242]
[1738864250459,0.13409475,96980.0,96979.0,1.03762242]
[1738864250657,0.13409475,96980.0,96979.0,1.03362242]
[1738864251092,0.13409475,96980.0,96979.0,1.03762242]
[1738864251297,0.13409475,96980.0,96979.0,1.03629283]
[1738864251498,0.13409475,96980.0,96979.0,1.03229283]
[1738864252062,0.13409475,96980.0,96979.0,1.02329283]
[1738864252476,0.13409475,96980.0,96979.0,1.03229283]
[1738864252686,0.13409475,96980.0,96979.0,1.02329283]
[1738864252874,0.13409475,96980.0,96979.0,1.02729283]
[1738864253182,8.4e-07,96980.0,96979.0,1.03629283]
[1738864253999,8.4e-07,96980.0,96979.0,1.03229283]
[1738864254179,0.08279474,97001.0,96999.0,0.30464]
[1738864254408,0.08279474,97001.0,96999.0,0.43534878]
[1738864254634,0.0498,97002.0,96999.0,0.43534878]
[1738864255790,0.0498,97002.0,96999.0,0.44134878]
[1738864256447,0.0498,97002.0,96999.0,0.44334878]
[1738864256780,0.0498,97002.0,96999.0,0.44134878]
[1738864257322,0.0498,97002.0,96999.0,0.44334878]
[1738864257672,0.0498,97002.0,96999.0,0.43734878]
[1738864258069,0.0783245,97000.0,96999.0,0.29334878]
[1738864258480,0.0783245,97000.0,96999.0,0.11570878]
[1738864258714,0.0783245,97000.0,96999.0,0.27034878]
[1738864258930,0.0783245,97000.0,96999.0,0.10970878]
[1738864259147,0.0783245,97000.0,96999.0,0.26634878]
[1738864259498,0.0783245,97000.0,96999.0,0.26434878]
[1738864259837,0.0783245,97000.0,96999.0,0.12005905]
[1738864260038,0.0783245,97000.0,96999.0,0.12105905]
[1738864260214,0.0783245,97000.0,96999.0,0.27569905]
[1738864260583,0.0783245,97000.0,96999.0,0.27469905]
[1738864260988,0.0783245,97000.0,96999.0,0.10870878]
[1738864261188,0.1280245,97000.0,96999.0,0.11170878]
[1738864261389,0.2826635,97000.0,96999.0,0.11170878]
[1738864261646,0.2826635,97000.0,96999.0,0.004]
[1738864261866,0.0755,96976.0,96968.0,0.10896]
[1738864262072,0.0755,96976.0,96969.0,0.10250365]
[1738864262316,0.0755,96976.0,96972.0,0.206243]
[1738864262493,0.0755,96976.0,96974.0,0.154679]
[1738864262700,0.0755,96976.0,96975.0,0.10250365]
[1738864262907,0.0755,96976.0,96975.0,0.10778555]
[1738864263465,0.230177,96976.0,96975.0,0.10778555]
[1738864263911,0.0755,96976.0,96975.0,0.10778555]
[1738864264115,0.0755,96976.0,96975.0,0.26246455]
[1738864265129,0.0755,96976.0,96975.0,0.28546455]
[1738864265651,0.0755,96976.0,96975.0,0.28846455]
[1738864266610,0.206178,97004.0,96975.0,0.28846455]
[1738864266611,0.0482,96989.0,96988.0,0.154658]
[1738864266804,0.0482,96989.0,96988.0,0.28540558]
[1738864267442,0.127,96989.0,96988.0,0.10774758]
[1738864267818,0.282656,96989.0,96988.0,0.00524393]
[1738864268080,0.154665,96984.0,96976.0,0.3241]
[1738864268252,0.0788,96983.0,96977.0,0.10250365]
[1738864268455,0.0788,96983.0,96977.0,0.10778289]
[1738864268875,0.0492,96989.0,96977.0,0.10778289]
[1738864268876,0.0809,96986.0,96977.0,0.10778289]
[1738864269144,0.1299,96978.0,96977.0,0.10778289]
[1738864269519,0.1299,96978.0,96977.0,0.10878289]
[1738864269678,0.1299,96978.0,96977.0,0.10350365]
[1738864269879,0.1299,96978.0,96977.0,0.10878889]
[1738864270849,0.1299,96978.0,96977.0,0.10778889]
[1738864271610,0.1299,96978.0,96977.0,0.286495]
[1738864271813,0.1299,96978.0,96977.0,0.28546389]
[1738864272358,0.1299,96978.0,96977.0,0.13078889]
[1738864272731,0.1299,96978.0,96977.0,0.13378889]
[1738864273099,0.1299,96978.0,96977.0,0.28846389]
[1738864274011,0.0819,96978.0,96977.0,0.28546389]
[1738864274438,0.0809,96978.0,96977.0,0.28846389]
[1738864274634,0.0754,96986.0,96985.0,0.154663]
[1738864274926,0.0754,96986.0,96985.0,0.25716665]
[1738864275107,0.0754,96986.0,96985.0,0.26242655]
[1738864275865,0.0754,96986.0,96985.0,0.10776355]
[1738864276849,0.0754,96986.0,96985.0,0.26242655]
[1738864277387,0.0754,96986.0,96985.0,0.28542655]
[1738864277601,0.0487,96998.0,96997.0,0.154643]
[1738864277793,0.0487,96998.0,96997.0,0.10772249]
[1738864278001,0.0487,96998.0,96997.0,0.10727609]
[1738864278200,0.0487,96998.0,96997.0,0.26191909]
[1738864279827,0.0497,96998.0,96997.0,0.10727609]
[1738864280029,0.0497,96998.0,96997.0,0.26191909]
[1738864280435,0.0487,96998.0,96997.0,0.26191909]
[1738864280702,0.0487,96998.0,96997.0,0.26291909]
[1738864280920,0.0487,96998.0,96997.0,0.27315622]
[1738864281123,0.052384,97019.0,96998.0,0.023]
[1738864281299,0.052384,97019.0,97008.0,0.154625]
[1738864281517,0.052384,97019.0,97009.0,0.10250365]
[1738864281720,0.206133,97025.0,97009.0,0.10767673]
[1738864281920,0.154606,97021.0,97009.0,0.10767673]
[1738864282130,0.254595,97028.0,97009.0,0.26230073]
[1738864282429,0.00036308,97020.0,97009.0,0.10767673]
[1738864282863,0.154612,97017.0,97009.0,0.10767673]
[1738864283016,0.154612,97017.0,97009.0,0.10250365]
[1738864283222,0.154612,97017.0,97010.0,0.00516905]
[1738864283439,0.155609,97019.0,97011.0,0.10250365]
[1738864283615,0.001,97019.0,97012.0,0.00516233]
[1738864283817,0.15497108,97020.0,97013.0,0.10250365]
[1738864284182,0.001,97017.0,97013.0,0.10250365]
[1738864284617,0.1262,97019.0,97013.0,0.10250365]
[1738864286315,0.280809,97019.0,97013.0,0.10250365]
[1738864286522,0.281809,97019.0,97013.0,0.10250365]
[1738864287225,0.1262,97019.0,97013.0,0.10250365]
[1738864287455,0.1272,97019.0,97014.0,0.00618633]
[1738864287645,0.1272,97019.0,97015.0,0.10250365]
[1738864287886,0.1262,97019.0,97016.0,0.00514888]
[1738864288094,0.1272,97019.0,97017.0,0.10250365]
[1738864288411,0.1272,97019.0,97018.0,0.00514216]
[1738864288619,0.1272,97019.0,97018.0,0.10764581]
[1738864289219,0.1262,97019.0,97018.0,0.10764581]
[1738864289464,0.280808,97019.0,97018.0,0.00514216]
[1738864289872,0.0793,97018.0,96997.0,0.023]
[1738864290182,0.0778,97011.0,96999.0,0.023]
[1738864290334,0.0778,97011.0,96998.0,0.10250365]
[1738864290335,0.232422,97011.0,97000.0,0.10250365]
[1738864290541,0.0778,97011.0,97000.0,0.10770476]
[1738864292587,0.0778,97011.0,97005.0,0.154631]
[1738864292588,0.07802428,97011.0,97005.0,0.154631]
[1738864292888,0.07802428,97011.0,97006.0,0.10768459]
[1738864293316,0.07902428,97011.0,97006.0,0.10768459]
[1738864293699,0.07802428,97011.0,97006.0,0.10768459]
[1738864294573,0.07802428,97011.0,97008.0,0.154626]
[1738864294776,0.07802428,97011.0,97009.0,0.10250365]
[1738864294927,0.07802428,97011.0,97009.0,0.26229851]
[1738864295127,0.00022428,97011.0,97009.0,0.10767451]
[1738864295331,0.00022428,97011.0,97010.0,0.154623]
[1738864295527,0.00022428,97011.0,97010.0,0.28115739]
[1738864295715,0.00022428,97011.0,97010.0,0.28529194]
[1738864296703,0.00122428,97011.0,97010.0,0.28529194]
[1738864297363,0.00022428,97011.0,97010.0,0.28529194]
[1738864297574,0.00022428,97011.0,97010.0,0.28729194]
[1738864297782,0.00022428,97011.0,97010.0,0.28829194]
[1738864298126,0.00022428,97011.0,97010.0,0.28629194]
[1738864298831,0.00022428,97011.0,97010.0,0.28929194]
[1738864299059,0.00022428,97011.0,97010.0,0.28829194]
[1738864299498,0.00022428,97011.0,97010.0,0.13466894]
[1738864299702,0.00022428,97011.0,97010.0,0.28929194]
[1738864299920,0.00022428,97011.0,97010.0,0.28829194]
[1738864300150,0.00022428,97011.0,97010.0,0.28929194]
[1738864300346,0.00022428,97011.0,97010.0,0.13466894]
[1738864300573,0.00022428,97011.0,97010.0,0.28929194]
[1738864300749,0.00022428,97011.0,97010.0,0.28629194]
[1738864301709,0.00022428,97011.0,97010.0,0.28929194]
[1738864308943,0.00022428,97011.0,97010.0,0.43929194]
[1738864309141,0.00022428,97011.0,97010.0,0.51969194]
[1738864309363,0.00022428,97011.0,97010.0,0.55164192]
[1738864309765,0.00022428,97011.0,97010.0,0.47124192]
[1738864310517,0.00022428,97011.0,97010.0,0.43082093]
[1738864312857,0.00022428,97011.0,97010.0,0.46279828]
[1738864314255,0.00022428,97011.0,97010.0,0.43082093]
[1738864315350,0.00022428,97011.0,97010.0,0.46279299]
[1738864317276,0.00022428,97011.0,97010.0,0.46289979]
[1738864317865,0.00022428,97011.0,97010.0,0.54119979]
[1738864318068,0.00022428,97011.0,97010.0,1.07919979]
[1738864319061,0.00022428,97011.0,97010.0,1.08819979]
[1738864319290,0.00022428,97011.0,97010.0,1.09819979]
[1738864319462,0.00022428,97019.0,97018.0,0.37281]
[1738864319661,0.00022428,97019.0,97018.0,1.0504148]
[1738864320877,0.00022428,97019.0,97018.0,1.14465499]
[1738864321102,0.00022428,97019.0,97018.0,1.16539518]
[1738864321310,0.00022429,97020.0,97019.0,0.173]
[1738864321483,0.00022429,97020.0,97019.0,0.50659441]
[1738864321694,0.081,97054.0,97028.0,0.304594]
[1738864321896,0.00051982,97029.0,97028.0,0.46206971]
[1738864322101,0.00051982,97029.0,97028.0,0.46716381]
[1738864322343,0.00051982,97029.0,97028.0,1.11694419]
[1738864322542,0.00051982,97029.0,97028.0,1.17414419]
[1738864322896,0.00051982,97029.0,97028.0,1.17714419]
[1738864323525,0.00051982,97029.0,97028.0,1.18722523]
[1738864323730,0.08301902,97060.0,97058.0,0.154546]
[1738864323930,0.0003244,97059.0,97058.0,0.28004965]
[1738864324160,0.0003244,97059.0,97058.0,0.28504132]
[1738864325398,0.0003244,97059.0,97058.0,0.10749532]
[1738864325399,0.0013244,97059.0,97058.0,0.10749532]
[1738864325598,0.0831244,97059.0,97058.0,0.10749532]
[1738864325858,0.08303289,97059.0,97058.0,0.10749532]
[1738864326419,0.23757789,97059.0,97058.0,0.10749532]
[1738864326803,0.28357789,97059.0,97058.0,0.00499167]
[1738864327017,0.0825,97058.0,97048.0,0.0102752]
[1738864327226,0.154555,97053.0,97049.0,0.10250365]
[1738864327398,0.0825,97052.0,97050.0,0.00501642]
[1738864327597,0.0825,97052.0,97051.0,0.10250365]
[1738864327819,0.0825,97052.0,97051.0,0.10751671]
[1738864328674,0.237056,97052.0,97051.0,0.10751671]
[1738864328875,0.0825,97052.0,97034.0,0.01033111]
[1738864329050,0.046,97043.0,97035.0,0.10757046]
[1738864329272,0.0825,97042.0,97035.0,0.10757046]
[1738864329607,0.0825,97052.0,97036.0,0.12653411]
[1738864329739,0.0825,97052.0,97051.0,0.154557]
[1738864329940,0.08272428,97052.0,97051.0,0.25706065]
[1738864330147,0.08272428,97052.0,97051.0,0.26207413]
[1738864330766,0.00022428,97052.0,97051.0,0.26207413]
[1738864331992,0.00022428,97052.0,97051.0,0.28507413]
[1738864332693,0.00022428,97052.0,97051.0,0.29537334]
[1738864334268,0.00022428,97052.0,97051.0,0.14081634]
[1738864335437,0.00022428,97052.0,97051.0,0.11781634]
[1738864336459,0.00022428,97052.0,97051.0,0.10751713]
[1738864336690,0.08062428,97052.0,97051.0,0.10751713]
[1738864336896,0.23518028,97052.0,97051.0,0.10751713]
[1738864337039,0.154583,97035.0,97020.0,0.154605]
[1738864337241,0.0803,97034.0,97021.0,0.10250365]
[1738864337589,0.0803,97034.0,97022.0,0.023]
[1738864337764,0.0803,97034.0,97024.0,0.1546]
[1738864337931,0.0803,97034.0,97030.0,0.15459]
[1738864338283,0.0803,97034.0,97031.0,0.25709265]